Workbook

Sheet Guidance
A2: RESOURCES:
A4: The following resources can be accessed via the tabs below:
A6: a) 2024 Template - Helps to plan the hours to be worked by an employee. Will assist in ensuring that allocated hours equate to total hours to be worked during the leave year.
A8: b) Working Hours Calculator - Assists in calculating the total number of hours to be worked per year (excluding Annual Leave and Public Holiday).
A10: The '2024 Template' and 'Working Hours Calculator' can be used to help plan an employees annualised hours working pattern. The Annual Leave Calculator for the current year (found on Arcadia under HR Policies and Procedure/Resource Pack) will help when working out AL/PH entitlement to be set up in Bodet.
A12: GUIDANCE:
A14: A copy of the spreadsheet should be taken for each employee/post.
A16: 1. Input employee name and job title.
A18: 2. Input contractual hours per annum (excluding annual leave and public holiday). If hours given include AL/PH the Working Hours Calculator worksheet can be used to calculate the contractual hours per annum (excluding annual leave and public holiday).
A20: 3. Input the start and end dates for this year by clicking on the relevant cells (M8/M9) and using the dropdowns.
A21: (i) For an employee who is expected to work for the whole year these will be 01/01/2024 and 31/12/2024.
A22: (ii) For any days that are outside the start and end dates entered the cells automatically turn red.
A24: 4. Ensure that all of the cells highlighted in red have a value of 0.00.
A26: 5. Confirm whether the employee has greater than 5 years service by clicking on the relevant cell (M10) and using the dropdown to select "Yes" or "No".
A28: 6. Enter the average number of days worked per week. The standard is 5 if there is no predicted work pattern, but if a rota is being used then the total number of days to be worked divided by weeks this year that are expected to be worked (maximum 52.18) should be used. Please note this figure is fixed for the whole year.
A30: 7. If there are hours bought forward from the previous year/spreadsheet input the total number of hours to be added.
A31: The Annualised Hours Planner:
A33: The planned number of hours to be worked each day is entered in the appropriate cells.
A35: The "Weekly Total (Excl. AL/PH)" column totals the hours to be worked during each week.
A37: The "Hours Remaining (Excl. AL/PH)" column shows the total hours remaining to be worked during this calendar year.
A38: (i) If, at the end of the calendar year, the figure in this column is negative then the hours that the employee has worked exceeded the total contracted hours by the number indicated. These hours should be claimed as additional hours, however, if any of these hours exceed the annual overtime threshold (1931 hours pro rata) they should be claimed as overtime.
A39: (ii) If, at the end of the calendar year, the figure in this column is positive then the hours that the employee has worked is less than the total contracted hours by the number indicated. These hours should be added to the following year's total.

Sheet calendar2024
A1: Calendar for | B1: 2024
B2: Date | C2: Day | D2: Number of days | E2: Working Days (all minus weekends)
B3: 2024-01-01 | C3: Monday | D3: 1 | E3: 1
B4: 2024-01-02 | C4: Tuesday | D4: 2 | E4: 1
B5: 2024-01-03 | C5: Wednesday | D5: 3 | E5: 1
B6: 2024-01-04 | C6: Thursday | D6: 4 | E6: 1
B7: 2024-01-05 | C7: Friday | D7: 5 | E7: 1
B8: 2024-01-06 | C8: Saturday | D8: 6 | E8: 0
B9: 2024-01-07 | C9: Sunday | D9: 7 | E9: 0
B10: 2024-01-08 | C10: Monday | D10: 8 | E10: 1
B11: 2024-01-09 | C11: Tuesday | D11: 9 | E11: 1
B12: 2024-01-10 | C12: Wednesday | D12: 10 | E12: 1
B13: 2024-01-11 | C13: Thursday | D13: 11 | E13: 1
B14: 2024-01-12 | C14: Friday | D14: 12 | E14: 1
B15: 2024-01-13 | C15: Saturday | D15: 13 | E15: 0
B16: 2024-01-14 | C16: Sunday | D16: 14 | E16: 0
B17: 2024-01-15 | C17: Monday | D17: 15 | E17: 1
B18: 2024-01-16 | C18: Tuesday | D18: 16 | E18: 1
B19: 2024-01-17 | C19: Wednesday | D19: 17 | E19: 1
B20: 2024-01-18 | C20: Thursday | D20: 18 | E20: 1
B21: 2024-01-19 | C21: Friday | D21: 19 | E21: 1
B22: 2024-01-20 | C22: Saturday | D22: 20 | E22: 0
B23: 2024-01-21 | C23: Sunday | D23: 21 | E23: 0
B24: 2024-01-22 | C24: Monday | D24: 22 | E24: 1
B25: 2024-01-23 | C25: Tuesday | D25: 23 | E25: 1
B26: 2024-01-24 | C26: Wednesday | D26: 24 | E26: 1
B27: 2024-01-25 | C27: Thursday | D27: 25 | E27: 1
B28: 2024-01-26 | C28: Friday | D28: 26 | E28: 1
B29: 2024-01-27 | C29: Saturday | D29: 27 | E29: 0
B30: 2024-01-28 | C30: Sunday | D30: 28 | E30: 0
B31: 2024-01-29 | C31: Monday | D31: 29 | E31: 1
B32: 2024-01-30 | C32: Tuesday | D32: 30 | E32: 1
B33: 2024-01-31 | C33: Wednesday | D33: 31 | E33: 1
B34: 2024-02-01 | C34: Thursday | D34: 32 | E34: 1
B35: 2024-02-02 | C35: Friday | D35: 33 | E35: 1
B36: 2024-02-03 | C36: Saturday | D36: 34 | E36: 0
B37: 2024-02-04 | C37: Sunday | D37: 35 | E37: 0
B38: 2024-02-05 | C38: Monday | D38: 36 | E38: 1
B39: 2024-02-06 | C39: Tuesday | D39: 37 | E39: 1
B40: 2024-02-07 | C40: Wednesday | D40: 38 | E40: 1
B41: 2024-02-08 | C41: Thursday | D41: 39 | E41: 1
B42: 2024-02-09 | C42: Friday | D42: 40 | E42: 1
B43: 2024-02-10 | C43: Saturday | D43: 41 | E43: 0
B44: 2024-02-11 | C44: Sunday | D44: 42 | E44: 0
B45: 2024-02-12 | C45: Monday | D45: 43 | E45: 1
B46: 2024-02-13 | C46: Tuesday | D46: 44 | E46: 1
B47: 2024-02-14 | C47: Wednesday | D47: 45 | E47: 1
B48: 2024-02-15 | C48: Thursday | D48: 46 | E48: 1
B49: 2024-02-16 | C49: Friday | D49: 47 | E49: 1
B50: 2024-02-17 | C50: Saturday | D50: 48 | E50: 0
B51: 2024-02-18 | C51: Sunday | D51: 49 | E51: 0
B52: 2024-02-19 | C52: Monday | D52: 50 | E52: 1
B53: 2024-02-20 | C53: Tuesday | D53: 51 | E53: 1
B54: 2024-02-21 | C54: Wednesday | D54: 52 | E54: 1
B55: 2024-02-22 | C55: Thursday | D55: 53 | E55: 1
B56: 2024-02-23 | C56: Friday | D56: 54 | E56: 1
B57: 2024-02-24 | C57: Saturday | D57: 55 | E57: 0
B58: 2024-02-25 | C58: Sunday | D58: 56 | E58: 0
B59: 2024-02-26 | C59: Monday | D59: 57 | E59: 1
B60: 2024-02-27 | C60: Tuesday | D60: 58 | E60: 1
B61: 2024-02-28 | C61: Wednesday | D61: 59 | E61: 1
B62: 2024-02-29 | C62: Thursday | D62: 60 | E62: 1
B63: 2024-03-01 | C63: Friday | D63: 61 | E63: 1
B64: 2024-03-02 | C64: Saturday | D64: 62 | E64: 0
B65: 2024-03-03 | C65: Sunday | D65: 63 | E65: 0
B66: 2024-03-04 | C66: Monday | D66: 64 | E66: 1
B67: 2024-03-05 | C67: Tuesday | D67: 65 | E67: 1
B68: 2024-03-06 | C68: Wednesday | D68: 66 | E68: 1
B69: 2024-03-07 | C69: Thursday | D69: 67 | E69: 1
B70: 2024-03-08 | C70: Friday | D70: 68 | E70: 1
B71: 2024-03-09 | C71: Saturday | D71: 69 | E71: 0
B72: 2024-03-10 | C72: Sunday | D72: 70 | E72: 0
B73: 2024-03-11 | C73: Monday | D73: 71 | E73: 1
B74: 2024-03-12 | C74: Tuesday | D74: 72 | E74: 1
B75: 2024-03-13 | C75: Wednesday | D75: 73 | E75: 1
B76: 2024-03-14 | C76: Thursday | D76: 74 | E76: 1
B77: 2024-03-15 | C77: Friday | D77: 75 | E77: 1
B78: 2024-03-16 | C78: Saturday | D78: 76 | E78: 0
B79: 2024-03-17 | C79: Sunday | D79: 77 | E79: 0
B80: 2024-03-18 | C80: Monday | D80: 78 | E80: 1
B81: 2024-03-19 | C81: Tuesday | D81: 79 | E81: 1
B82: 2024-03-20 | C82: Wednesday | D82: 80 | E82: 1
B83: 2024-03-21 | C83: Thursday | D83: 81 | E83: 1
B84: 2024-03-22 | C84: Friday | D84: 82 | E84: 1
B85: 2024-03-23 | C85: Saturday | D85: 83 | E85: 0
B86: 2024-03-24 | C86: Sunday | D86: 84 | E86: 0
B87: 2024-03-25 | C87: Monday | D87: 85 | E87: 1
B88: 2024-03-26 | C88: Tuesday | D88: 86 | E88: 1
B89: 2024-03-27 | C89: Wednesday | D89: 87 | E89: 1
B90: 2024-03-28 | C90: Thursday | D90: 88 | E90: 1
B91: 2024-03-29 | C91: Friday | D91: 89 | E91: 1
B92: 2024-03-30 | C92: Saturday | D92: 90 | E92: 0
B93: 2024-03-31 | C93: Sunday | D93: 91 | E93: 0
B94: 2024-04-01 | C94: Monday | D94: 92 | E94: 1
B95: 2024-04-02 | C95: Tuesday | D95: 93 | E95: 1
B96: 2024-04-03 | C96: Wednesday | D96: 94 | E96: 1
B97: 2024-04-04 | C97: Thursday | D97: 95 | E97: 1
B98: 2024-04-05 | C98: Friday | D98: 96 | E98: 1
B99: 2024-04-06 | C99: Saturday | D99: 97 | E99: 0
B100: 2024-04-07 | C100: Sunday | D100: 98 | E100: 0
B101: 2024-04-08 | C101: Monday | D101: 99 | E101: 1
B102: 2024-04-09 | C102: Tuesday | D102: 100 | E102: 1
B103: 2024-04-10 | C103: Wednesday | D103: 101 | E103: 1
B104: 2024-04-11 | C104: Thursday | D104: 102 | E104: 1
B105: 2024-04-12 | C105: Friday | D105: 103 | E105: 1
B106: 2024-04-13 | C106: Saturday | D106: 104 | E106: 0
B107: 2024-04-14 | C107: Sunday | D107: 105 | E107: 0
B108: 2024-04-15 | C108: Monday | D108: 106 | E108: 1
B109: 2024-04-16 | C109: Tuesday | D109: 107 | E109: 1
B110: 2024-04-17 | C110: Wednesday | D110: 108 | E110: 1
B111: 2024-04-18 | C111: Thursday | D111: 109 | E111: 1
B112: 2024-04-19 | C112: Friday | D112: 110 | E112: 1
B113: 2024-04-20 | C113: Saturday | D113: 111 | E113: 0
B114: 2024-04-21 | C114: Sunday | D114: 112 | E114: 0
B115: 2024-04-22 | C115: Monday | D115: 113 | E115: 1
B116: 2024-04-23 | C116: Tuesday | D116: 114 | E116: 1
B117: 2024-04-24 | C117: Wednesday | D117: 115 | E117: 1
B118: 2024-04-25 | C118: Thursday | D118: 116 | E118: 1
B119: 2024-04-26 | C119: Friday | D119: 117 | E119: 1
B120: 2024-04-27 | C120: Saturday | D120: 118 | E120: 0
B121: 2024-04-28 | C121: Sunday | D121: 119 | E121: 0
B122: 2024-04-29 | C122: Monday | D122: 120 | E122: 1
B123: 2024-04-30 | C123: Tuesday | D123: 121 | E123: 1
B124: 2024-05-01 | C124: Wednesday | D124: 122 | E124: 1
B125: 2024-05-02 | C125: Thursday | D125: 123 | E125: 1
B126: 2024-05-03 | C126: Friday | D126: 124 | E126: 1
B127: 2024-05-04 | C127: Saturday | D127: 125 | E127: 0
B128: 2024-05-05 | C128: Sunday | D128: 126 | E128: 0
B129: 2024-05-06 | C129: Monday | D129: 127 | E129: 1
B130: 2024-05-07 | C130: Tuesday | D130: 128 | E130: 1
B131: 2024-05-08 | C131: Wednesday | D131: 129 | E131: 1
B132: 2024-05-09 | C132: Thursday | D132: 130 | E132: 1
B133: 2024-05-10 | C133: Friday | D133: 131 | E133: 1
B134: 2024-05-11 | C134: Saturday | D134: 132 | E134: 0
B135: 2024-05-12 | C135: Sunday | D135: 133 | E135: 0
B136: 2024-05-13 | C136: Monday | D136: 134 | E136: 1
B137: 2024-05-14 | C137: Tuesday | D137: 135 | E137: 1
B138: 2024-05-15 | C138: Wednesday | D138: 136 | E138: 1
B139: 2024-05-16 | C139: Thursday | D139: 137 | E139: 1
B140: 2024-05-17 | C140: Friday | D140: 138 | E140: 1
B141: 2024-05-18 | C141: Saturday | D141: 139 | E141: 0
B142: 2024-05-19 | C142: Sunday | D142: 140 | E142: 0
B143: 2024-05-20 | C143: Monday | D143: 141 | E143: 1
B144: 2024-05-21 | C144: Tuesday | D144: 142 | E144: 1
B145: 2024-05-22 | C145: Wednesday | D145: 143 | E145: 1
B146: 2024-05-23 | C146: Thursday | D146: 144 | E146: 1
B147: 2024-05-24 | C147: Friday | D147: 145 | E147: 1
B148: 2024-05-25 | C148: Saturday | D148: 146 | E148: 0
B149: 2024-05-26 | C149: Sunday | D149: 147 | E149: 0
B150: 2024-05-27 | C150: Monday | D150: 148 | E150: 1
B151: 2024-05-28 | C151: Tuesday | D151: 149 | E151: 1
B152: 2024-05-29 | C152: Wednesday | D152: 150 | E152: 1
B153: 2024-05-30 | C153: Thursday | D153: 151 | E153: 1
B154: 2024-05-31 | C154: Friday | D154: 152 | E154: 1
B155: 2024-06-01 | C155: Saturday | D155: 153 | E155: 0
B156: 2024-06-02 | C156: Sunday | D156: 154 | E156: 0
B157: 2024-06-03 | C157: Monday | D157: 155 | E157: 1
B158: 2024-06-04 | C158: Tuesday | D158: 156 | E158: 1
B159: 2024-06-05 | C159: Wednesday | D159: 157 | E159: 1
B160: 2024-06-06 | C160: Thursday | D160: 158 | E160: 1
B161: 2024-06-07 | C161: Friday | D161: 159 | E161: 1
B162: 2024-06-08 | C162: Saturday | D162: 160 | E162: 0
B163: 2024-06-09 | C163: Sunday | D163: 161 | E163: 0
B164: 2024-06-10 | C164: Monday | D164: 162 | E164: 1
B165: 2024-06-11 | C165: Tuesday | D165: 163 | E165: 1
B166: 2024-06-12 | C166: Wednesday | D166: 164 | E166: 1
B167: 2024-06-13 | C167: Thursday | D167: 165 | E167: 1
B168: 2024-06-14 | C168: Friday | D168: 166 | E168: 1
B169: 2024-06-15 | C169: Saturday | D169: 167 | E169: 0
B170: 2024-06-16 | C170: Sunday | D170: 168 | E170: 0
B171: 2024-06-17 | C171: Monday | D171: 169 | E171: 1
B172: 2024-06-18 | C172: Tuesday | D172: 170 | E172: 1
B173: 2024-06-19 | C173: Wednesday | D173: 171 | E173: 1
B174: 2024-06-20 | C174: Thursday | D174: 172 | E174: 1
B175: 2024-06-21 | C175: Friday | D175: 173 | E175: 1
B176: 2024-06-22 | C176: Saturday | D176: 174 | E176: 0
B177: 2024-06-23 | C177: Sunday | D177: 175 | E177: 0
B178: 2024-06-24 | C178: Monday | D178: 176 | E178: 1
B179: 2024-06-25 | C179: Tuesday | D179: 177 | E179: 1
B180: 2024-06-26 | C180: Wednesday | D180: 178 | E180: 1
B181: 2024-06-27 | C181: Thursday | D181: 179 | E181: 1
B182: 2024-06-28 | C182: Friday | D182: 180 | E182: 1
B183: 2024-06-29 | C183: Saturday | D183: 181 | E183: 0
B184: 2024-06-30 | C184: Sunday | D184: 182 | E184: 0
B185: 2024-07-01 | C185: Monday | D185: 183 | E185: 1
B186: 2024-07-02 | C186: Tuesday | D186: 184 | E186: 1
B187: 2024-07-03 | C187: Wednesday | D187: 185 | E187: 1
B188: 2024-07-04 | C188: Thursday | D188: 186 | E188: 1
B189: 2024-07-05 | C189: Friday | D189: 187 | E189: 1
B190: 2024-07-06 | C190: Saturday | D190: 188 | E190: 0
B191: 2024-07-07 | C191: Sunday | D191: 189 | E191: 0
B192: 2024-07-08 | C192: Monday | D192: 190 | E192: 1
B193: 2024-07-09 | C193: Tuesday | D193: 191 | E193: 1
B194: 2024-07-10 | C194: Wednesday | D194: 192 | E194: 1
B195: 2024-07-11 | C195: Thursday | D195: 193 | E195: 1
B196: 2024-07-12 | C196: Friday | D196: 194 | E196: 1
B197: 2024-07-13 | C197: Saturday | D197: 195 | E197: 0
B198: 2024-07-14 | C198: Sunday | D198: 196 | E198: 0
B199: 2024-07-15 | C199: Monday | D199: 197 | E199: 1
B200: 2024-07-16 | C200: Tuesday | D200: 198 | E200: 1
... 169 more rows

Sheet Working Hours Calculator
A2: Please use whichever calculator is relevant:
A4: There are 262 potential working days in 2024 (all days minus weekends)
A8: Hours Per Week
A9: Contracted Hours Per Week (Including AL/PH) for the whole year | B9: Working Hours in 2023 | C9: Daily hours | D9: Under 5 Years(35Xdaily hours) | E9: Over 5 Years(40xdaily hours) | F9: Total Hours Per Year (Excluding AL/PH) Under 5 Years Cont. Service | G9: Total Hours Per Year (Excluding AL/PH) Over 5 Years Cont. Service | H9: F*0.15494 | I9: G*0.18108 | J9: H+F | K9: G+I
A10: 25 | B10: =C10*262 -> 1310 | C10: =A10/5 -> 5 | D10: =35*C10 -> 175 | E10: =40*C10 -> 200 | F10: =B10-D10 -> 1135 | G10: =B10-E10 -> 1110 | H10: =F10*0.15494 -> 175.8569 | I10: =G10*0.18108 -> 200.9988 | J10: =F10+H10 -> 1310.8569 | K10: =G10+I10 -> 1310.9988
A16: Total Hours Per Year
A17: Hours for the whole year (Including AL/PH) | B17: Daily Hours | C17: Under 5 Years(35Xdaily hours) | D17: Over 5 Years(39xdaily hours) | F17: Total Hours Per Year (Excluding AL/PH) Under 5 Years Cont. Service | G17: Total Hours Per Year (Excluding AL/PH) Over 5 Years Cont. Service | H17: F*0.15494 | I17: G*0.18108 | J17: H+F | K17: G+I
A18: 1899.5 | B18: =A18/262 -> 7.25 | C18: =35*B18 -> 253.75 | D18: =40*B18 -> 290 | F18: =A18-C18 -> 1645.75 | G18: =A18-D18 -> 1609.5 | H18: =F18*0.15494 -> 254.992505 | I18: =G18*0.18108 -> 291.44826 | J18: =F18+H18 -> 1900.742505 | K18: =G18+I18 -> 1900.94826

Sheet 2024 Template
B1: ANNUALISED HOURS PLANNER 2024 | Y1: Days | AB1: Y/N | AC1: Date | AD1: Day | AE1: Number of days | AF1: Working Days | AG1: Count working days for these dates
Y2: 1 | AB2: Yes | AC2: 2024-01-01 | AD2: Monday | AE2: 1 | AF2: 1 | AG2: =IF($AC2>=$AI$2,IF($AC2<=$AI$3,AF2,0),0) -> 1 | AI2: =SList -> 2024-01-01
Y3: 2 | AB3: No | AC3: 2024-01-02 | AD3: Tuesday | AE3: 2 | AF3: 1 | AG3: =IF($AC3>=$AI$2,IF($AC3<=$AI$3,AF3,0),0) -> 1 | AI3: =O9 -> 2024-12-31
E4: EMPLOYEE DETAILS: | Y4: 3 | AC4: 2024-01-03 | AD4: Wednesday | AE4: 3 | AF4: 1 | AG4: 1
B5: For guidance on using the spreadsheet, please click on the Guidance tab below. | E5: Name | Y5: 4 | AC5: 2024-01-04 | AD5: Thursday | AE5: 4 | AF5: 1 | AG5: 1
E6: Job Title | Y6: 5 | AC6: 2024-01-05 | AD6: Friday | AE6: 5 | AF6: 1 | AG6: 1
E7: Contracted hours this year (excluding AL and PH) | O7: 0 | Y7: 6 | AC7: 2024-01-06 | AD7: Saturday | AE7: 6 | AF7: 0 | AG7: 0
E8: Start date | K8: =VALUE(SList) -> 45292 | L8: =K8-1 -> 45291 | O8: 2024-01-01 | Y8: 7 | AC8: 2024-01-07 | AD8: Sunday | AE8: 7 | AF8: 0 | AG8: 0
E9: End date | K9: =VALUE(O9) -> 45657 | L9: =K9+1 -> 45658 | O9: 2024-12-31 | AC9: 2024-01-08 | AD9: Monday | AE9: 8 | AF9: 1 | AG9: 1
E10: Greater than 5 Years Service? | O10: No | AC10: 2024-01-09 | AD10: Tuesday | AE10: 9 | AF10: 1 | AG10: 1
E11: Average number of days worked per week | O11: 5 | AC11: 2024-01-10 | AD11: Wednesday | AE11: 10 | AF11: 1 | AG11: 1
E12: Hours taking start and end dates into account | J12: =O9-O8+ 1 -> 366 | K12: =IF(J12 >= 365,365,J12) -> 365 | O12: =SUM(O7/262)*AG368 -> 0 | AC12: 2024-01-11 | AD12: Thursday | AE12: 11 | AF12: 1 | AG12: 1
AC13: 2024-01-12 | AD13: Friday | AE13: 12 | AF13: 1 | AG13: 1
E14: BROUGHT FORWARD HOURS: | AC14: 2024-01-13 | AD14: Saturday | AE14: 13 | AF14: 0 | AG14: 0
E15: Outstanding hours B/F from previous sheet | O15: 0 | AC15: 2024-01-14 | AD15: Sunday | AE15: 14 | AF15: 0 | AG15: 0
E16: Outstanding AL/PH hours from previous sheet | O16: 0 | AC16: 2024-01-15 | AD16: Monday | AE16: 15 | AF16: 1 | AG16: 1
AC17: 2024-01-16 | AD17: Tuesday | AE17: 16 | AF17: 1 | AG17: 1
E18: TOTALS: | AC18: 2024-01-17 | AD18: Wednesday | AE18: 17 | AF18: 1 | AG18: 1
E19: Total hours plus holiday entitlement (excluding B/F) | O19: =+O12+O80-O16 -> 0 | AC19: 2024-01-18 | AD19: Thursday | AE19: 18 | AF19: 1 | AG19: 1
E20: Average weekly hours | K20: =O12/K79 -> 0 | O20: =ROUND(O19/AG370,4) -> 0 | AC20: 2024-01-19 | AD20: Friday | AE20: 19 | AF20: 1 | AG20: 1
E21: Average daily hours | K21: =K20/5 -> 0 | O21: =ROUND(O20/O11,6) -> 0 | AC21: 2024-01-20 | AD21: Saturday | AE21: 20 | AF21: 0 | AG21: 0
AC22: 2024-01-21 | AD22: Sunday | AE22: 21 | AF22: 0 | AG22: 0
B23: ANNUALISED HOURS PLANNER | AC23: 2024-01-22 | AD23: Monday | AE23: 22 | AF23: 1 | AG23: 1
B24: Week Start Date | C24: Monday | D24: Tuesday | E24: Wednesday | F24: Thursday | G24: Friday | H24: Saturday | I24: Sunday | J24: Sickness | K24: Holiday | L24: Special Leave | M24: AL/PH Hours (Not Daily Average) | N24: Weekly Total (Excl. AL/PH) | O24: Hours Remaining (Excl. AL/PH) | AC24: 2024-01-23 | AD24: Tuesday | AE24: 23 | AF24: 1 | AG24: 1
A25: =VALUE(B25) -> 45292 | B25: 2024-01-01 | C25: 0 | D25: 0 | E25: 0 | F25: 0 | G25: 0 | H25: 0 | I25: 0 | J25: =IF(M25=0,COUNTIF(C25:I25,"LSA"),0) -> 0 | K25: =IF(M25=0,COUNTIF(C25:I25,"LHE"),0) -> 0 | L25: =COUNTIF(C25:I25,"LSL") -> 0 | M25: 0 | N25: =SUM(C25:I25)+(J25*$O$21)+(L25*$O$21) -> 0 | O25: =O12+O15-N25 -> 0 | AC25: 2024-01-24 | AD25: Wednesday | AE25: 24 | AF25: 1 | AG25: 1
A26: =VALUE(B26) -> 45299 | B26: =B25+7 -> 2024-01-08 | C26: 0 | D26: 0 | E26: 0 | F26: 0 | G26: 0 | H26: 0 | I26: 0 | J26: =COUNTIF(C26:I26,"LSA") -> 0 | K26: =IF(M26=0,COUNTIF(C26:I26,"LHE"),0) -> 0 | L26: =COUNTIF(C26:I26,"LSL") -> 0 | M26: 0 | N26: 0 | O26: =O25-N26 -> 0 | AC26: 2024-01-25 | AD26: Thursday | AE26: 25 | AF26: 1 | AG26: 1
A27: 45306 | B27: 2024-01-15 | C27: 0 | D27: 0 | E27: 0 | F27: 0 | G27: 0 | H27: 0 | I27: 0 | J27: 0 | K27: 0 | L27: 0 | M27: 0 | N27: 0 | O27: =O26-N27 -> 0 | AC27: 2024-01-26 | AD27: Friday | AE27: 26 | AF27: 1 | AG27: 1
A28: 45313 | B28: 2024-01-22 | C28: 0 | D28: 0 | E28: 0 | F28: 0 | G28: 0 | H28: 0 | I28: 0 | J28: 0 | K28: 0 | L28: 0 | M28: 0 | N28: 0 | O28: 0 | AC28: 2024-01-27 | AD28: Saturday | AE28: 27 | AF28: 0 | AG28: 0
A29: 45320 | B29: 2024-01-29 | C29: 0 | D29: 0 | E29: 0 | F29: 0 | G29: 0 | H29: 0 | I29: 0 | J29: 0 | K29: 0 | L29: 0 | M29: 0 | N29: 0 | O29: 0 | AC29: 2024-01-28 | AD29: Sunday | AE29: 28 | AF29: 0 | AG29: 0
A30: 45327 | B30: 2024-02-05 | C30: 0 | D30: 0 | E30: 0 | F30: 0 | G30: 0 | H30: 0 | I30: 0 | J30: 0 | K30: 0 | L30: 0 | M30: 0 | N30: 0 | O30: 0 | AC30: 2024-01-29 | AD30: Monday | AE30: 29 | AF30: 1 | AG30: 1
A31: 45334 | B31: 2024-02-12 | C31: 0 | D31: 0 | E31: 0 | F31: 0 | G31: 0 | H31: 0 | I31: 0 | J31: 0 | K31: 0 | L31: 0 | M31: 0 | N31: 0 | O31: 0 | AC31: 2024-01-30 | AD31: Tuesday | AE31: 30 | AF31: 1 | AG31: 1
A32: 45341 | B32: 2024-02-19 | C32: 0 | D32: 0 | E32: 0 | F32: 0 | G32: 0 | H32: 0 | I32: 0 | J32: 0 | K32: 0 | L32: 0 | M32: 0 | N32: 0 | O32: 0 | AC32: 2024-01-31 | AD32: Wednesday | AE32: 31 | AF32: 1 | AG32: 1
A33: 45348 | B33: 2024-02-26 | C33: 0 | D33: 0 | E33: 0 | F33: 0 | G33: 0 | H33: 0 | I33: 0 | J33: 0 | K33: 0 | L33: 0 | M33: 0 | N33: 0 | O33: 0 | AC33: 2024-02-01 | AD33: Thursday | AE33: 32 | AF33: 1 | AG33: 1
A34: 45355 | B34: 2024-03-04 | C34: 0 | D34: 0 | E34: 0 | F34: 0 | G34: 0 | H34: 0 | I34: 0 | J34: 0 | K34: 0 | L34: 0 | M34: 0 | N34: 0 | O34: 0 | AC34: 2024-02-02 | AD34: Friday | AE34: 33 | AF34: 1 | AG34: 1
A35: 45362 | B35: 2024-03-11 | C35: 0 | D35: 0 | E35: 0 | F35: 0 | G35: 0 | H35: 0 | I35: 0 | J35: 0 | K35: 0 | L35: 0 | M35: 0 | N35: 0 | O35: 0 | AC35: 2024-02-03 | AD35: Saturday | AE35: 34 | AF35: 0 | AG35: 0
A36: 45369 | B36: 2024-03-18 | C36: 0 | D36: 0 | E36: 0 | F36: 0 | G36: 0 | H36: 0 | I36: 0 | J36: 0 | K36: 0 | L36: 0 | M36: 0 | N36: 0 | O36: 0 | AC36: 2024-02-04 | AD36: Sunday | AE36: 35 | AF36: 0 | AG36: 0
A37: 45376 | B37: 2024-03-25 | C37: 0 | D37: 0 | E37: 0 | F37: 0 | G37: 0 | H37: 0 | I37: 0 | J37: 0 | K37: 0 | L37: 0 | M37: 0 | N37: 0 | O37: 0 | AC37: 2024-02-05 | AD37: Monday | AE37: 36 | AF37: 1 | AG37: 1
A38: 45383 | B38: 2024-04-01 | C38: 0 | D38: 0 | E38: 0 | F38: 0 | G38: 0 | H38: 0 | I38: 0 | J38: 0 | K38: 0 | L38: 0 | M38: 0 | N38: 0 | O38: 0 | AC38: 2024-02-06 | AD38: Tuesday | AE38: 37 | AF38: 1 | AG38: 1
A39: 45390 | B39: 2024-04-08 | C39: 0 | D39: 0 | E39: 0 | F39: 0 | G39: 0 | H39: 0 | I39: 0 | J39: 0 | K39: 0 | L39: 0 | M39: 0 | N39: 0 | O39: 0 | AC39: 2024-02-07 | AD39: Wednesday | AE39: 38 | AF39: 1 | AG39: 1
A40: 45397 | B40: 2024-04-15 | C40: 0 | D40: 0 | E40: 0 | F40: 0 | G40: 0 | H40: 0 | I40: 0 | J40: 0 | K40: 0 | L40: 0 | M40: 0 | N40: 0 | O40: 0 | AC40: 2024-02-08 | AD40: Thursday | AE40: 39 | AF40: 1 | AG40: 1
A41: 45404 | B41: 2024-04-22 | C41: 0 | D41: 0 | E41: 0 | F41: 0 | G41: 0 | H41: 0 | I41: 0 | J41: 0 | K41: 0 | L41: 0 | M41: 0 | N41: 0 | O41: 0 | AC41: 2024-02-09 | AD41: Friday | AE41: 40 | AF41: 1 | AG41: 1
A42: 45411 | B42: 2024-04-29 | C42: 0 | D42: 0 | E42: 0 | F42: 0 | G42: 0 | H42: 0 | I42: 0 | J42: 0 | K42: 0 | L42: 0 | M42: 0 | N42: 0 | O42: 0 | AC42: 2024-02-10 | AD42: Saturday | AE42: 41 | AF42: 0 | AG42: 0
A43: 45418 | B43: 2024-05-06 | C43: 0 | D43: 0 | E43: 0 | F43: 0 | G43: 0 | H43: 0 | I43: 0 | J43: 0 | K43: 0 | L43: 0 | M43: 0 | N43: 0 | O43: 0 | AC43: 2024-02-11 | AD43: Sunday | AE43: 42 | AF43: 0 | AG43: 0
A44: 45425 | B44: 2024-05-13 | C44: 0 | D44: 0 | E44: 0 | F44: 0 | G44: 0 | H44: 0 | I44: 0 | J44: 0 | K44: 0 | L44: 0 | M44: 0 | N44: 0 | O44: 0 | AC44: 2024-02-12 | AD44: Monday | AE44: 43 | AF44: 1 | AG44: 1
A45: 45432 | B45: 2024-05-20 | C45: 0 | D45: 0 | E45: 0 | F45: 0 | G45: 0 | H45: 0 | I45: 0 | J45: 0 | K45: 0 | L45: 0 | M45: 0 | N45: 0 | O45: 0 | AC45: 2024-02-13 | AD45: Tuesday | AE45: 44 | AF45: 1 | AG45: 1
A46: 45439 | B46: 2024-05-27 | C46: 0 | D46: 0 | E46: 0 | F46: 0 | G46: 0 | H46: 0 | I46: 0 | J46: 0 | K46: 0 | L46: 0 | M46: 0 | N46: 0 | O46: 0 | AC46: 2024-02-14 | AD46: Wednesday | AE46: 45 | AF46: 1 | AG46: 1
A47: 45446 | B47: 2024-06-03 | C47: 0 | D47: 0 | E47: 0 | F47: 0 | G47: 0 | H47: 0 | I47: 0 | J47: 0 | K47: 0 | L47: 0 | M47: 0 | N47: 0 | O47: 0 | AC47: 2024-02-15 | AD47: Thursday | AE47: 46 | AF47: 1 | AG47: 1
A48: 45453 | B48: 2024-06-10 | C48: 0 | D48: 0 | E48: 0 | F48: 0 | G48: 0 | H48: 0 | I48: 0 | J48: 0 | K48: 0 | L48: 0 | M48: 0 | N48: 0 | O48: 0 | AC48: 2024-02-16 | AD48: Friday | AE48: 47 | AF48: 1 | AG48: 1
A49: 45460 | B49: 2024-06-17 | C49: 0 | D49: 0 | E49: 0 | F49: 0 | G49: 0 | H49: 0 | I49: 0 | J49: 0 | K49: 0 | L49: 0 | M49: 0 | N49: 0 | O49: 0 | AC49: 2024-02-17 | AD49: Saturday | AE49: 48 | AF49: 0 | AG49: 0
A50: 45467 | B50: 2024-06-24 | C50: 0 | D50: 0 | E50: 0 | F50: 0 | G50: 0 | H50: 0 | I50: 0 | J50: 0 | K50: 0 | L50: 0 | M50: 0 | N50: 0 | O50: 0 | AC50: 2024-02-18 | AD50: Sunday | AE50: 49 | AF50: 0 | AG50: 0
A51: 45474 | B51: 2024-07-01 | C51: 0 | D51: 0 | E51: 0 | F51: 0 | G51: 0 | H51: 0 | I51: 0 | J51: 0 | K51: 0 | L51: 0 | M51: 0 | N51: 0 | O51: 0 | AC51: 2024-02-19 | AD51: Monday | AE51: 50 | AF51: 1 | AG51: 1
A52: 45481 | B52: 2024-07-08 | C52: 0 | D52: 0 | E52: 0 | F52: 0 | G52: 0 | H52: 0 | I52: 0 | J52: 0 | K52: 0 | L52: 0 | M52: 0 | N52: 0 | O52: 0 | AC52: 2024-02-20 | AD52: Tuesday | AE52: 51 | AF52: 1 | AG52: 1
A53: 45488 | B53: 2024-07-15 | C53: 0 | D53: 0 | E53: 0 | F53: 0 | G53: 0 | H53: 0 | I53: 0 | J53: 0 | K53: 0 | L53: 0 | M53: 0 | N53: 0 | O53: 0 | AC53: 2024-02-21 | AD53: Wednesday | AE53: 52 | AF53: 1 | AG53: 1
A54: 45495 | B54: 2024-07-22 | C54: 0 | D54: 0 | E54: 0 | F54: 0 | G54: 0 | H54: 0 | I54: 0 | J54: 0 | K54: 0 | L54: 0 | M54: 0 | N54: 0 | O54: 0 | AC54: 2024-02-22 | AD54: Thursday | AE54: 53 | AF54: 1 | AG54: 1
A55: 45502 | B55: 2024-07-29 | C55: 0 | D55: 0 | E55: 0 | F55: 0 | G55: 0 | H55: 0 | I55: 0 | J55: 0 | K55: 0 | L55: 0 | M55: 0 | N55: 0 | O55: 0 | AC55: 2024-02-23 | AD55: Friday | AE55: 54 | AF55: 1 | AG55: 1
A56: 45509 | B56: 2024-08-05 | C56: 0 | D56: 0 | E56: 0 | F56: 0 | G56: 0 | H56: 0 | I56: 0 | J56: 0 | K56: 0 | L56: 0 | M56: 0 | N56: 0 | O56: 0 | AC56: 2024-02-24 | AD56: Saturday | AE56: 55 | AF56: 0 | AG56: 0
A57: 45516 | B57: 2024-08-12 | C57: 0 | D57: 0 | E57: 0 | F57: 0 | G57: 0 | H57: 0 | I57: 0 | J57: 0 | K57: 0 | L57: 0 | M57: 0 | N57: 0 | O57: 0 | AC57: 2024-02-25 | AD57: Sunday | AE57: 56 | AF57: 0 | AG57: 0
A58: 45523 | B58: =B57+7 -> 2024-08-19 | C58: 0 | D58: 0 | E58: 0 | F58: 0 | G58: 0 | H58: 0 | I58: 0 | J58: 0 | K58: 0 | L58: 0 | M58: 0 | N58: =SUM(C58:I58)+(J58*$O$21)+(L58*$O$21) -> 0 | O58: 0 | AC58: 2024-02-26 | AD58: Monday | AE58: 57 | AF58: 1 | AG58: 1
A59: 45530 | B59: 2024-08-26 | C59: 0 | D59: 0 | E59: 0 | F59: 0 | G59: 0 | H59: 0 | I59: 0 | J59: 0 | K59: 0 | L59: 0 | M59: 0 | N59: 0 | O59: 0 | AC59: 2024-02-27 | AD59: Tuesday | AE59: 58 | AF59: 1 | AG59: 1
A60: 45537 | B60: 2024-09-02 | C60: 0 | D60: 0 | E60: 0 | F60: 0 | G60: 0 | H60: 0 | I60: 0 | J60: 0 | K60: 0 | L60: 0 | M60: 0 | N60: 0 | O60: 0 | AC60: 2024-02-28 | AD60: Wednesday | AE60: 59 | AF60: 1 | AG60: 1
A61: 45544 | B61: 2024-09-09 | C61: 0 | D61: 0 | E61: 0 | F61: 0 | G61: 0 | H61: 0 | I61: 0 | J61: 0 | K61: 0 | L61: 0 | M61: 0 | N61: 0 | O61: 0 | AC61: 2024-02-29 | AD61: Thursday | AE61: 60 | AF61: 1 | AG61: 1
A62: 45551 | B62: 2024-09-16 | C62: 0 | D62: 0 | E62: 0 | F62: 0 | G62: 0 | H62: 0 | I62: 0 | J62: 0 | K62: 0 | L62: 0 | M62: 0 | N62: 0 | O62: 0 | AC62: 2024-03-01 | AD62: Friday | AE62: 61 | AF62: 1 | AG62: 1
A63: 45558 | B63: 2024-09-23 | C63: 0 | D63: 0 | E63: 0 | F63: 0 | G63: 0 | H63: 0 | I63: 0 | J63: 0 | K63: 0 | L63: 0 | M63: 0 | N63: 0 | O63: 0 | AC63: 2024-03-02 | AD63: Saturday | AE63: 62 | AF63: 0 | AG63: 0
A64: 45565 | B64: 2024-09-30 | C64: 0 | D64: 0 | E64: 0 | F64: 0 | G64: 0 | H64: 0 | I64: 0 | J64: 0 | K64: 0 | L64: 0 | M64: 0 | N64: 0 | O64: 0 | AC64: 2024-03-03 | AD64: Sunday | AE64: 63 | AF64: 0 | AG64: 0
A65: 45572 | B65: 2024-10-07 | C65: 0 | D65: 0 | E65: 0 | F65: 0 | G65: 0 | H65: 0 | I65: 0 | J65: 0 | K65: 0 | L65: 0 | M65: 0 | N65: 0 | O65: 0 | AC65: 2024-03-04 | AD65: Monday | AE65: 64 | AF65: 1 | AG65: 1
A66: 45579 | B66: 2024-10-14 | C66: 0 | D66: 0 | E66: 0 | F66: 0 | G66: 0 | H66: 0 | I66: 5 | J66: 0 | K66: 0 | L66: 0 | M66: 0 | N66: 0 | O66: 0 | AC66: 2024-03-05 | AD66: Tuesday | AE66: 65 | AF66: 1 | AG66: 1
A67: 45586 | B67: 2024-10-21 | C67: 0 | D67: 0 | E67: 0 | F67: 0 | G67: 0 | H67: 0 | I67: 0 | J67: 0 | K67: 0 | L67: 0 | M67: 0 | N67: 0 | O67: 0 | AC67: 2024-03-06 | AD67: Wednesday | AE67: 66 | AF67: 1 | AG67: =IF($AC67>=$AI$2,IF($AC67<=$AI$3,AF67,0),0) -> 1
A68: 45593 | B68: 2024-10-28 | C68: 0 | D68: 0 | E68: 0 | F68: 0 | G68: 0 | H68: 0 | I68: 0 | J68: 0 | K68: 0 | L68: 0 | M68: 0 | N68: 0 | O68: 0 | AC68: 2024-03-07 | AD68: Thursday | AE68: 67 | AF68: 1 | AG68: 1
A69: 45600 | B69: 2024-11-04 | C69: 0 | D69: 0 | E69: 0 | F69: 0 | G69: 0 | H69: 0 | I69: 0 | J69: 0 | K69: 0 | L69: 0 | M69: 0 | N69: 0 | O69: 0 | AC69: 2024-03-08 | AD69: Friday | AE69: 68 | AF69: 1 | AG69: 1
A70: 45607 | B70: 2024-11-11 | C70: 0 | D70: 0 | E70: 0 | F70: 0 | G70: 0 | H70: 0 | I70: 0 | J70: 0 | K70: 0 | L70: 0 | M70: 0 | N70: 0 | O70: 0 | AC70: 2024-03-09 | AD70: Saturday | AE70: 69 | AF70: 0 | AG70: 0
A71: 45614 | B71: 2024-11-18 | C71: 0 | D71: 0 | E71: 0 | F71: 0 | G71: 0 | H71: 0 | I71: 0 | J71: 0 | K71: 0 | L71: 0 | M71: 0 | N71: 0 | O71: 0 | AC71: 2024-03-10 | AD71: Sunday | AE71: 70 | AF71: 0 | AG71: 0
A72: 45621 | B72: 2024-11-25 | C72: 0 | D72: 0 | E72: 0 | F72: 0 | G72: 0 | H72: 5 | I72: 0 | J72: 0 | K72: 0 | L72: 0 | M72: 0 | N72: 0 | O72: 0 | AC72: 2024-03-11 | AD72: Monday | AE72: 71 | AF72: 1 | AG72: 1
A73: 45628 | B73: 2024-12-02 | C73: 0 | D73: 0 | E73: 0 | F73: 0 | G73: 0 | H73: 0 | I73: 0 | J73: 0 | K73: 0 | L73: 0 | M73: 0 | N73: 0 | O73: 0 | AC73: 2024-03-12 | AD73: Tuesday | AE73: 72 | AF73: 1 | AG73: 1
A74: 45635 | B74: 2024-12-09 | C74: 0 | D74: 0 | E74: 0 | F74: 0 | G74: 0 | H74: 0 | I74: 0 | J74: 0 | K74: 0 | L74: 0 | M74: 0 | N74: 0 | O74: 0 | AC74: 2024-03-13 | AD74: Wednesday | AE74: 73 | AF74: 1 | AG74: 1
A75: 45642 | B75: 2024-12-16 | C75: 0 | D75: 0 | E75: 0 | F75: 0 | G75: 0 | H75: 0 | I75: 0 | J75: 0 | K75: 0 | L75: 0 | M75: 0 | N75: 0 | O75: 0 | AC75: 2024-03-14 | AD75: Thursday | AE75: 74 | AF75: 1 | AG75: 1
A76: 45649 | B76: 2024-12-23 | C76: 0 | D76: 0 | E76: 0 | F76: 0 | G76: 0 | H76: 0 | I76: 0 | J76: 0 | K76: 0 | L76: 0 | M76: 0 | N76: 0 | O76: 0 | AC76: 2024-03-15 | AD76: Friday | AE76: 75 | AF76: 1 | AG76: 1
A77: 45656 | B77: 2024-12-30 | C77: 0 | D77: 0 | E77: 0 | F77: 0 | G77: 0 | H77: 0 | I77: 0 | J77: 0 | K77: 0 | L77: 0 | M77: 0 | N77: 0 | O77: 0 | AC77: 2024-03-16 | AD77: Saturday | AE77: 76 | AF77: 0 | AG77: 0
AC78: 2024-03-17 | AD78: Sunday | AE78: 77 | AF78: 0 | AG78: 0
E79: ANNUAL LEAVE AND PUBLIC HOLIDAY (AL/PH): | J79: =J12/7 -> 52.28571429 | K79: =K12/7 -> 52.14285714 | AC79: 2024-03-18 | AD79: Monday | AE79: 78 | AF79: 1 | AG79: 1
E80: Annual leave and public holiday entitlement (Inc. B/F) | O80: =IF($O$10= "Yes",$O$12*0.18018018,$O$12*0.154185022)+O16 -> 0 | AC80: 2024-03-19 | AD80: Tuesday | AE80: 79 | AF80: 1 | AG80: 1
E81: Annual leave and public holiday taken | J81: =SUM($K$25:$K$77) -> 0 | K81: =SUM($M$25:$M$77) -> 0 | O81: =J81*$O$21+K81 -> 0 | AC81: 2024-03-20 | AD81: Wednesday | AE81: 80 | AF81: 1 | AG81: 1
E82: Annual leave and public holiday remaining | O82: =O80-O81 -> 0 | AC82: 2024-03-21 | AD82: Thursday | AE82: 81 | AF82: 1 | AG82: 1
AC83: 2024-03-22 | AD83: Friday | AE83: 82 | AF83: 1 | AG83: 1
AC84: 2024-03-23 | AD84: Saturday | AE84: 83 | AF84: 0 | AG84: 0
AC85: 2024-03-24 | AD85: Sunday | AE85: 84 | AF85: 0 | AG85: 0
AC86: 2024-03-25 | AD86: Monday | AE86: 85 | AF86: 1 | AG86: 1
AC87: 2024-03-26 | AD87: Tuesday | AE87: 86 | AF87: 1 | AG87: 1
AC88: 2024-03-27 | AD88: Wednesday | AE88: 87 | AF88: 1 | AG88: 1
AC89: 2024-03-28 | AD89: Thursday | AE89: 88 | AF89: 1 | AG89: 1
AC90: 2024-03-29 | AD90: Friday | AE90: 89 | AF90: 1 | AG90: 1
AC91: 2024-03-30 | AD91: Saturday | AE91: 90 | AF91: 0 | AG91: 0
AC92: 2024-03-31 | AD92: Sunday | AE92: 91 | AF92: 0 | AG92: 0
AC93: 2024-04-01 | AD93: Monday | AE93: 92 | AF93: 1 | AG93: 1
AC94: 2024-04-02 | AD94: Tuesday | AE94: 93 | AF94: 1 | AG94: 1
AC95: 2024-04-03 | AD95: Wednesday | AE95: 94 | AF95: 1 | AG95: 1
AC96: 2024-04-04 | AD96: Thursday | AE96: 95 | AF96: 1 | AG96: 1
AC97: 2024-04-05 | AD97: Friday | AE97: 96 | AF97: 1 | AG97: 1
AC98: 2024-04-06 | AD98: Saturday | AE98: 97 | AF98: 0 | AG98: 0
AC99: 2024-04-07 | AD99: Sunday | AE99: 98 | AF99: 0 | AG99: 0
AC100: 2024-04-08 | AD100: Monday | AE100: 99 | AF100: 1 | AG100: 1
AC101: 2024-04-09 | AD101: Tuesday | AE101: 100 | AF101: 1 | AG101: 1
AC102: 2024-04-10 | AD102: Wednesday | AE102: 101 | AF102: 1 | AG102: 1
AC103: 2024-04-11 | AD103: Thursday | AE103: 102 | AF103: 1 | AG103: 1
AC104: 2024-04-12 | AD104: Friday | AE104: 103 | AF104: 1 | AG104: 1
AC105: 2024-04-13 | AD105: Saturday | AE105: 104 | AF105: 0 | AG105: 0
AC106: 2024-04-14 | AD106: Sunday | AE106: 105 | AF106: 0 | AG106: 0
AC107: 2024-04-15 | AD107: Monday | AE107: 106 | AF107: 1 | AG107: 1
AC108: 2024-04-16 | AD108: Tuesday | AE108: 107 | AF108: 1 | AG108: 1
AC109: 2024-04-17 | AD109: Wednesday | AE109: 108 | AF109: 1 | AG109: 1
AC110: 2024-04-18 | AD110: Thursday | AE110: 109 | AF110: 1 | AG110: 1
AC111: 2024-04-19 | AD111: Friday | AE111: 110 | AF111: 1 | AG111: 1
AC112: 2024-04-20 | AD112: Saturday | AE112: 111 | AF112: 0 | AG112: 0
AC113: 2024-04-21 | AD113: Sunday | AE113: 112 | AF113: 0 | AG113: 0
AC114: 2024-04-22 | AD114: Monday | AE114: 113 | AF114: 1 | AG114: 1
AC115: 2024-04-23 | AD115: Tuesday | AE115: 114 | AF115: 1 | AG115: 1
AC116: 2024-04-24 | AD116: Wednesday | AE116: 115 | AF116: 1 | AG116: 1
AC117: 2024-04-25 | AD117: Thursday | AE117: 116 | AF117: 1 | AG117: 1
AC118: 2024-04-26 | AD118: Friday | AE118: 117 | AF118: 1 | AG118: 1
AC119: 2024-04-27 | AD119: Saturday | AE119: 118 | AF119: 0 | AG119: 0
AC120: 2024-04-28 | AD120: Sunday | AE120: 119 | AF120: 0 | AG120: 0
AC121: 2024-04-29 | AD121: Monday | AE121: 120 | AF121: 1 | AG121: 1
AC122: 2024-04-30 | AD122: Tuesday | AE122: 121 | AF122: 1 | AG122: 1
AC123: 2024-05-01 | AD123: Wednesday | AE123: 122 | AF123: 1 | AG123: 1
AC124: 2024-05-02 | AD124: Thursday | AE124: 123 | AF124: 1 | AG124: 1
AC125: 2024-05-03 | AD125: Friday | AE125: 124 | AF125: 1 | AG125: 1
AC126: 2024-05-04 | AD126: Saturday | AE126: 125 | AF126: 0 | AG126: 0
AC127: 2024-05-05 | AD127: Sunday | AE127: 126 | AF127: 0 | AG127: 0
AC128: 2024-05-06 | AD128: Monday | AE128: 127 | AF128: 1 | AG128: 1
AC129: 2024-05-07 | AD129: Tuesday | AE129: 128 | AF129: 1 | AG129: 1
AC130: 2024-05-08 | AD130: Wednesday | AE130: 129 | AF130: 1 | AG130: 1
AC131: 2024-05-09 | AD131: Thursday | AE131: 130 | AF131: 1 | AG131: =IF($AC131>=$AI$2,IF($AC131<=$AI$3,AF131,0),0) -> 1
AC132: 2024-05-10 | AD132: Friday | AE132: 131 | AF132: 1 | AG132: 1
AC133: 2024-05-11 | AD133: Saturday | AE133: 132 | AF133: 0 | AG133: 0
AC134: 2024-05-12 | AD134: Sunday | AE134: 133 | AF134: 0 | AG134: 0
AC135: 2024-05-13 | AD135: Monday | AE135: 134 | AF135: 1 | AG135: 1
AC136: 2024-05-14 | AD136: Tuesday | AE136: 135 | AF136: 1 | AG136: 1
AC137: 2024-05-15 | AD137: Wednesday | AE137: 136 | AF137: 1 | AG137: 1
AC138: 2024-05-16 | AD138: Thursday | AE138: 137 | AF138: 1 | AG138: 1
AC139: 2024-05-17 | AD139: Friday | AE139: 138 | AF139: 1 | AG139: 1
AC140: 2024-05-18 | AD140: Saturday | AE140: 139 | AF140: 0 | AG140: 0
AC141: 2024-05-19 | AD141: Sunday | AE141: 140 | AF141: 0 | AG141: 0
AC142: 2024-05-20 | AD142: Monday | AE142: 141 | AF142: 1 | AG142: 1
AC143: 2024-05-21 | AD143: Tuesday | AE143: 142 | AF143: 1 | AG143: 1
AC144: 2024-05-22 | AD144: Wednesday | AE144: 143 | AF144: 1 | AG144: 1
AC145: 2024-05-23 | AD145: Thursday | AE145: 144 | AF145: 1 | AG145: 1
AC146: 2024-05-24 | AD146: Friday | AE146: 145 | AF146: 1 | AG146: 1
AC147: 2024-05-25 | AD147: Saturday | AE147: 146 | AF147: 0 | AG147: 0
AC148: 2024-05-26 | AD148: Sunday | AE148: 147 | AF148: 0 | AG148: 0
AC149: 2024-05-27 | AD149: Monday | AE149: 148 | AF149: 1 | AG149: 1
AC150: 2024-05-28 | AD150: Tuesday | AE150: 149 | AF150: 1 | AG150: 1
AC151: 2024-05-29 | AD151: Wednesday | AE151: 150 | AF151: 1 | AG151: 1
AC152: 2024-05-30 | AD152: Thursday | AE152: 151 | AF152: 1 | AG152: 1
AC153: 2024-05-31 | AD153: Friday | AE153: 152 | AF153: 1 | AG153: 1
AC154: 2024-06-01 | AD154: Saturday | AE154: 153 | AF154: 0 | AG154: 0
AC155: 2024-06-02 | AD155: Sunday | AE155: 154 | AF155: 0 | AG155: 0
AC156: 2024-06-03 | AD156: Monday | AE156: 155 | AF156: 1 | AG156: 1
AC157: 2024-06-04 | AD157: Tuesday | AE157: 156 | AF157: 1 | AG157: 1
AC158: 2024-06-05 | AD158: Wednesday | AE158: 157 | AF158: 1 | AG158: 1
AC159: 2024-06-06 | AD159: Thursday | AE159: 158 | AF159: 1 | AG159: 1
AC160: 2024-06-07 | AD160: Friday | AE160: 159 | AF160: 1 | AG160: 1
AC161: 2024-06-08 | AD161: Saturday | AE161: 160 | AF161: 0 | AG161: 0
AC162: 2024-06-09 | AD162: Sunday | AE162: 161 | AF162: 0 | AG162: 0
AC163: 2024-06-10 | AD163: Monday | AE163: 162 | AF163: 1 | AG163: 1
AC164: 2024-06-11 | AD164: Tuesday | AE164: 163 | AF164: 1 | AG164: 1
AC165: 2024-06-12 | AD165: Wednesday | AE165: 164 | AF165: 1 | AG165: 1
AC166: 2024-06-13 | AD166: Thursday | AE166: 165 | AF166: 1 | AG166: 1
AC167: 2024-06-14 | AD167: Friday | AE167: 166 | AF167: 1 | AG167: 1
AC168: 2024-06-15 | AD168: Saturday | AE168: 167 | AF168: 0 | AG168: 0
AC169: 2024-06-16 | AD169: Sunday | AE169: 168 | AF169: 0 | AG169: 0
AC170: 2024-06-17 | AD170: Monday | AE170: 169 | AF170: 1 | AG170: 1
AC171: 2024-06-18 | AD171: Tuesday | AE171: 170 | AF171: 1 | AG171: 1
AC172: 2024-06-19 | AD172: Wednesday | AE172: 171 | AF172: 1 | AG172: 1
AC173: 2024-06-20 | AD173: Thursday | AE173: 172 | AF173: 1 | AG173: 1
AC174: 2024-06-21 | AD174: Friday | AE174: 173 | AF174: 1 | AG174: 1
AC175: 2024-06-22 | AD175: Saturday | AE175: 174 | AF175: 0 | AG175: 0
AC176: 2024-06-23 | AD176: Sunday | AE176: 175 | AF176: 0 | AG176: 0
AC177: 2024-06-24 | AD177: Monday | AE177: 176 | AF177: 1 | AG177: 1
AC178: 2024-06-25 | AD178: Tuesday | AE178: 177 | AF178: 1 | AG178: 1
AC179: 2024-06-26 | AD179: Wednesday | AE179: 178 | AF179: 1 | AG179: 1
AC180: 2024-06-27 | AD180: Thursday | AE180: 179 | AF180: 1 | AG180: 1
AC181: 2024-06-28 | AD181: Friday | AE181: 180 | AF181: 1 | AG181: 1
AC182: 2024-06-29 | AD182: Saturday | AE182: 181 | AF182: 0 | AG182: 0
AC183: 2024-06-30 | AD183: Sunday | AE183: 182 | AF183: 0 | AG183: 0
AC184: 2024-07-01 | AD184: Monday | AE184: 183 | AF184: 1 | AG184: 1
AC185: 2024-07-02 | AD185: Tuesday | AE185: 184 | AF185: 1 | AG185: 1
AC186: 2024-07-03 | AD186: Wednesday | AE186: 185 | AF186: 1 | AG186: 1
AC187: 2024-07-04 | AD187: Thursday | AE187: 186 | AF187: 1 | AG187: 1
AC188: 2024-07-05 | AD188: Friday | AE188: 187 | AF188: 1 | AG188: 1
AC189: 2024-07-06 | AD189: Saturday | AE189: 188 | AF189: 0 | AG189: 0
AC190: 2024-07-07 | AD190: Sunday | AE190: 189 | AF190: 0 | AG190: 0
AC191: 2024-07-08 | AD191: Monday | AE191: 190 | AF191: 1 | AG191: 1
AC192: 2024-07-09 | AD192: Tuesday | AE192: 191 | AF192: 1 | AG192: 1
AC193: 2024-07-10 | AD193: Wednesday | AE193: 192 | AF193: 1 | AG193: 1
AC194: 2024-07-11 | AD194: Thursday | AE194: 193 | AF194: 1 | AG194: 1
AC195: 2024-07-12 | AD195: Friday | AE195: 194 | AF195: 1 | AG195: =IF($AC195>=$AI$2,IF($AC195<=$AI$3,AF195,0),0) -> 1
AC196: 2024-07-13 | AD196: Saturday | AE196: 195 | AF196: 0 | AG196: 0
AC197: 2024-07-14 | AD197: Sunday | AE197: 196 | AF197: 0 | AG197: 0
AC198: 2024-07-15 | AD198: Monday | AE198: 197 | AF198: 1 | AG198: 1
AC199: 2024-07-16 | AD199: Tuesday | AE199: 198 | AF199: 1 | AG199: 1
AC200: 2024-07-17 | AD200: Wednesday | AE200: 199 | AF200: 1 | AG200: 1
... 169 more rows
